[Event "FIDE World Cadets GU12 2022"]
[Site "Batumi"]
[Date "2022.09.26"]
[Round "10.17"]
[White "Tynyshtyk, Diana"]
[Black "Enkhuyanga Gantsolmon"]
[Result "1-0"]
[ECO "C06"]
[WhiteElo "1373"]
[BlackElo "1301"]
[Annotator "NA RC"]
[PlyCount "89"]
[EventDate "2022.09.16"]
[EventType "swiss"]
[EventCountry "GEO"]
[SourceTitle "playchess.com"]
[Source "ChessBase"]
[SourceQuality "1"]
[TimeControl "5400+30"]

1. e4 {[%emt 0:01:00]} e6 {[%emt 0:01:00]} 2. d4 {[%emt 0:00:30]} d5 {[%emt 0:00:30]} 3. Nd2 {[%emt 0:00:00]} Nf6 {[%emt 0:00:00]} 4. e5 {[%emt 0:04:00]} Nfd7 {[%emt 0:00:00]} 5. Bd3 {[%emt 0:00:30]} c5 {[%emt 0:00:30]} 6. c3 {[%emt 0:00:30]} Nc6 {[%emt 0:00:30]} 7. Ne2 {[%emt 0:00:00]} Qb6 {[%emt 0:01:30]} 8. Nf3 {[%emt 0:00:00]} cxd4 {[%emt 0:02:30]} 9. cxd4 {[%emt 0:00:00]} Bb4+ {[%emt 0:00:30]} 10. Bd2 {[%emt 0:01:00]} O-O {[%emt 0:03:30]} 11. O-O {[%emt 0:03:30]} Bxd2 {[%emt 0:02:30]} 12. Qxd2 {[%emt 0:01:30]} Qb4 {[%emt 0:02:30]} 13. Qe3 {[%emt 0:04:30]} Qe7 {[%emt 0:04:30]} 14. Rac1 {[%emt 0:09:30]} Nb6 {[%emt 0:03:30]} 15. Ng3 {[%emt 0:04:30]} h6 {[%emt 0:10:30]} 16. Nh5 {[%emt 0:03:30]} Nd7 {[%emt 0:11:30]} 17. Bb1 {[%emt 0:06:30]} f5 {[%emt 0:10:30]} 18. exf6 {[%emt 0:02:30]} Nxf6 {[%emt 0:00:30]} 19. Qd3 {[%emt 0:06:30]} Ne4 {[%emt 0:04:30]} 20. Ng3 {[%emt 0:03:30]} Nb4 {[%emt 0:02:30]} 21. Qb3 {[%emt 0:09:30]} Nxg3 {[%emt 0:01:30]} 22. fxg3 {[%emt 0:00:30]} g5 {[%emt 0:08:30]} 23. Ne5 {[%emt 0:02:30]} Nc6 {[%emt 0:11:15]} 24. Ng6 {[%emt 0:02:30]} Rxf1+ {[%emt 0:00:43]} 25. Rxf1 {[%emt 0:00:00]} Qb4 {[%emt 0:00:44]} 26. Qc2 {[%emt 0:17:27]} Qxd4+ {[%emt 0:09:31]} 27. Kh1 {[%emt 0:01:41]} Qg7 {[%emt 0:01:09]} 28. Rf8+ {[%emt 0:01:53]} Qxf8 {[%emt 0:00:30]} 29. Nxf8 {[%emt 0:00:00]} Kxf8 {[%emt 0:00:15]} 30. Qh7 {[%emt 0:00:17]} Ke8 {[%emt 0:01:18]} 31. Bg6+ {[%emt 0:03:56]} Kd8 {[%emt 0:00:22]} 32. Bh5 {[%emt 0:01:52]} Rb8 {[%emt 0:02:50]} 33. Qxh6 {[%emt 0:01:03]} Bd7 {[%emt 0:01:30]} 34. Bg4 {[%emt 0:00:41]} e5 {[%emt 0:01:06]} 35. Qd6 {[%emt 0:00:28]} Ke8 {[%emt 0:00:32]} 36. Bxd7+ {[%emt 0:00:30]} Kf7 {[%emt 0:00:30]} 37. Bxc6 {[%emt 0:00:00]} bxc6 {[%emt 0:02:43]} 38. Qxb8 {[%emt 0:00:20]} Ke6 {[%emt 0:00:00]} 39. Kg1 {[%emt 0:00:34]} d4 {[%emt 0:00:07]} 40. Kf2 {[%emt 0:00:00]} Kd5 {[%emt 0:00:00]} 41. Qb3+ {[%emt 0:01:20]} Kd6 {[%emt 0:00:40]} 42. Qc4 {[%emt 0:00:41]} g4 {[%emt 0:00:29]} 43. h4 {[%emt 0:00:11]} c5 {[%emt 0:00:22]} 44. h5 {[%emt 0:00:18]} e4 {[%emt 0:00:30]} 45. h6 {[%emt 0:00:00]} 1-0